bitfinex/quotes_SOLUSD_20250228
["timestamp","ask_amount","ask_price","bid_price","bid_amount"]
[1740751425245,18.79181043,141.29,141.16,0.063]
[1740751425459,0.3392,141.45,141.17,118.88]
[1740751425666,0.3392,141.45,141.2,2.0]
[1740751425983,0.14216157,141.39,141.17,118.88]
[1740751426147,0.3392,141.38,141.17,118.88]
[1740751426348,0.48136157,141.39,141.17,118.88]
[1740751426575,0.48136157,141.41,141.18,1.48676946]
[1740751426868,0.14216157,141.41,141.19,18.64964886]
[1740751427078,0.55244235,141.52,141.25,0.14216157]
[1740751427247,0.3392,141.5,141.34,312.0]
[1740751427447,0.21324235,141.52,141.34,312.0]
[1740751427653,0.21324235,141.52,141.35,1.48496541]
[1740751427873,0.21324235,141.52,141.31,118.98]
[1740751427874,11.00158568,141.56,141.32,8.5607899]
[1740751428063,5.1074,141.62,141.36,0.14216157]
[1740751428277,0.3392,141.59,141.37,1.48407753]
[1740751428582,0.3392,141.6,141.38,0.14216157]
[1740751428885,0.3392,141.59,141.4,18.64964886]
[1740751429050,0.3392,141.58,141.35,20.0]
[1740751429249,4.7682,141.62,141.34,1.48431875]
[1740751429250,0.3392,141.55,141.34,7.0747]
[1740751429477,0.3392,141.59,141.36,0.14216157]
[1740751429677,4.7682,141.62,141.38,0.14216157]
[1740751429678,0.3392,141.6,141.38,0.14216157]
[1740751429913,4.7682,141.62,141.43,20.0]
[1740751429914,0.3392,141.61,141.43,20.0]
[1740751430082,0.3392,141.62,141.43,139.02]
[1740751430257,0.3392,141.6,141.43,139.02]
[1740751430593,0.3392,141.58,141.43,119.02]
[1740751430751,0.3392,141.58,141.45,312.0]
[1740751430952,0.14216157,141.52,141.35,119.02]
[1740751431258,0.14216157,141.52,141.36,18.64964886]
[1740751431459,19.13101043,141.5,141.35,119.02]
[1740751431679,0.14216157,141.46,141.27,120.52524704]
[1740751431877,0.14216157,141.44,141.27,119.04]
[1740751432282,0.14216157,141.44,141.28,1.48573435]
[1740751432487,0.3392,141.51,141.28,1.48573435]
[1740751432661,0.48136157,141.5,141.28,1.48573435]
[1740751432987,0.48136157,141.43,141.27,119.04]
[1740751433284,0.14216157,141.39,141.27,119.04]
[1740751433489,18.79181043,141.39,141.27,119.04]
[1740751433702,19.13101043,141.39,141.27,119.04]
[1740751433894,0.3392,141.42,141.27,431.04]
[1740751434095,0.48136157,141.42,141.27,119.04]
[1740751434298,0.3392,141.44,141.27,119.04]
[1740751434499,0.3392,141.46,141.27,119.04]
[1740751434675,0.063,141.39,141.27,119.04]
[1740751435077,0.063,141.39,141.28,1.48594697]
[1740751435372,0.063,141.39,141.29,18.64964886]
[1740751435581,0.063,141.39,141.27,119.04]
[1740751436993,0.063,141.39,141.29,312.0]
[1740751437508,0.063,141.39,141.15,4.4943]
[1740751437680,0.14216157,141.25,141.04,18.7992575]
[1740751437881,0.14216157,141.25,141.06,7.0887]
[1740751438183,4.7682,141.34,141.07,1.48756939]
[1740751438184,5.1074,141.34,141.07,1.48756939]
[1740751438397,0.14216157,141.27,141.08,7.0878]
[1740751438575,18.79181043,141.27,141.05,1.48748796]
[1740751438774,19.13101043,141.27,141.07,7.0886]
[1740751438978,0.14216157,141.25,141.04,4.1933]
[1740751439201,0.14216157,141.25,141.04,11.2834]
[1740751439202,0.48136157,141.25,141.04,11.2834]
[1740751439410,0.3392,141.24,141.06,20.0]
[1740751439594,19.13101043,141.23,141.06,20.0]
[1740751439786,19.13101043,141.23,141.04,4.1933]
[1740751439787,18.79181043,141.18,141.04,4.1933]
[1740751439984,18.79181043,141.18,141.02,127.8924]
[1740751440179,0.14216157,141.13,141.02,119.1]
[1740751440402,0.14216157,141.13,141.01,0.063]
[1740751440710,0.14216157,141.11,141.03,312.0]
[1740751440906,0.14216157,141.11,141.01,0.063]
[1740751440907,0.3392,141.1,141.01,0.063]
[1740751441106,18.79181043,141.11,141.01,0.063]
[1740751441107,0.14216157,141.11,141.01,0.063]
[1740751441411,3.86655117,141.2,141.02,119.18]
[1740751441702,0.3392,141.2,141.02,119.18]
[1740751441879,0.3392,141.21,141.02,119.18]
[1740751442085,0.3392,141.22,141.02,119.18]
[1740751442503,0.3392,141.23,141.05,20.0]
[1740751442813,0.3392,141.23,141.06,18.64964886]
[1740751443099,0.3392,141.27,141.1,18.64964886]
[1740751443303,0.3392,141.25,141.09,20.0]
[1740751443607,0.3392,141.25,141.05,7.23136157]
[1740751443781,0.3392,141.28,141.14,312.0]
[1740751444285,0.3392,141.28,141.1,18.64964886]
[1740751445283,0.3392,141.3,141.14,18.64964886]
[1740751445503,0.3392,141.26,141.13,119.22]
[1740751445706,18.79181043,141.25,141.13,119.22]
[1740751445913,19.13101043,141.25,141.13,119.22]
[1740751446079,19.13101043,141.23,141.13,119.22]
[1740751446285,10.45493202,141.29,141.05,119.22]
[1740751446590,0.3392,141.31,141.07,0.14216157]
[1740751446792,0.3392,141.31,141.1,0.14216157]
[1740751446988,0.3392,141.31,141.1,1.62929773]
[1740751447185,0.3392,141.31,141.15,18.64964886]
[1740751447392,0.3392,141.32,141.19,312.0]
[1740751447608,0.3392,141.33,141.19,312.0]
[1740751447803,0.3392,141.33,141.16,137.90964886]
[1740751448007,0.3392,141.35,141.18,18.64964886]
[1740751448203,10.66238568,141.36,141.19,21.48654854]
[1740751448512,0.063,141.39,141.19,1.48654854]
[1740751448513,0.3392,141.34,141.19,1.48654854]
[1740751448712,0.063,141.39,141.17,1.62878127]
[1740751448895,0.063,141.39,141.21,21.33216157]
[1740751449099,0.063,141.39,141.23,22.99296157]
[1740751449303,0.063,141.39,141.24,1.48496481]
[1740751449505,0.063,141.39,141.25,7.22176157]
[1740751449707,0.063,141.39,141.29,18.79181043]
[1740751449923,0.063,141.39,141.3,120.70465282]
[1740751450122,0.063,141.39,141.3,119.22]
[1740751450418,0.063,141.39,141.31,18.79181043]
[1740751450602,0.063,141.39,141.37,18.64964886]
[1740751450912,0.063,141.39,141.3,123.3222]
[1740751450913,0.063,141.39,141.38,313.48439576]
[1740751451221,0.063,141.39,141.38,312.0]
[1740751452389,0.063,141.39,141.3,123.3222]
[1740751452589,0.063,141.39,141.3,119.22]
[1740751452800,0.063,141.39,141.31,18.64964886]
[1740751453013,0.063,141.39,141.3,119.22]
[1740751453315,0.063,141.39,141.33,0.14216157]
[1740751453524,0.063,141.39,141.31,20.27723843]
[1740751453525,0.063,141.39,141.35,18.64964886]
[1740751453821,0.063,141.39,141.31,8.56079143]
[1740751453985,0.063,141.39,141.3,119.22]
[1740751454189,0.063,141.39,141.34,0.14216157]
[1740751454384,0.063,141.43,141.38,0.14216157]
[1740751454600,0.3392,141.66,141.44,0.14216157]
[1740751454810,0.3392,141.68,141.49,0.14216157]
[1740751455115,0.3392,141.74,141.55,18.79181043]
[1740751455289,0.3392,141.73,141.56,120.66214623]
[1740751455495,0.3392,141.74,141.66,312.0]
[1740751455697,0.3392,141.73,141.66,312.0]
[1740751455894,0.3392,141.67,141.56,119.18]
[1740751456108,0.3392,141.75,141.59,20.0]
[1740751456305,0.3392,141.79,141.6,21.48187697]
[1740751456514,0.3392,141.83,141.61,0.14216157]
[1740751456713,0.3392,141.86,141.71,18.64964886]
[1740751456929,4.7682,141.91,141.69,119.12]
[1740751456930,0.3392,141.83,141.69,119.12]
[1740751457128,0.3392,141.84,141.7,1.48123615]
[1740751457326,0.3392,141.86,141.69,119.12]
[1740751457510,0.3392,141.85,141.69,119.12]
[1740751457696,0.3392,141.83,141.7,18.64964886]
[1740751458028,0.3392,141.84,141.65,0.14216157]
[1740751458218,0.3392,141.89,141.71,18.79181043]
[1740751458423,0.3392,141.84,141.68,1.48063621]
[1740751458729,0.3392,141.84,141.61,127.66243761]
[1740751458730,0.3392,141.77,141.61,127.66243761]
[1740751458934,0.3392,141.79,141.69,312.0]
[1740751459129,0.3392,141.82,141.69,312.0]
[1740751459306,0.3392,141.83,141.69,312.0]
[1740751459508,0.3392,141.82,141.65,0.14216157]
[1740751459701,0.3392,141.75,141.61,119.12]
[1740751459956,0.48136157,141.7,141.57,4.4833]
[1740751460100,0.48136157,141.75,141.58,1.48267704]
[1740751460297,0.3392,141.8,141.61,0.14216157]
[1740751460598,0.3392,141.79,141.65,18.64964886]
[1740751460798,18.64964886,141.86,141.66,1.48148211]
[1740751460799,0.3392,141.8,141.66,1.48148211]
[1740751460998,0.3392,141.83,141.66,1.62364368]
[1740751461233,0.3392,141.83,141.68,20.0]
[1740751461416,0.3392,141.78,141.65,119.04]
[1740751461620,0.14216157,141.77,141.65,119.04]
[1740751461796,0.3392,141.8,141.66,1.4816726]
[1740751461997,0.14216157,141.81,141.66,1.4816726]
[1740751461998,0.3392,141.83,141.68,20.0]
[1740751462203,0.3392,141.85,141.69,18.64964886]
[1740751462525,0.3392,141.82,141.76,312.0]
[1740751462824,0.3392,141.8,141.65,119.04]
[1740751463023,0.3392,141.84,141.67,0.14216157]
[1740751463214,0.3392,141.89,141.69,0.14216157]
[1740751463413,0.063,141.93,141.78,20.0]
[1740751463599,0.063,141.93,141.79,120.45997806]
[1740751463810,0.063,141.93,141.8,18.64964886]
[1740751464012,0.063,141.93,141.86,18.64964886]
[1740751464235,0.063,141.93,141.88,18.64964886]
[1740751464439,0.063,141.93,141.9,18.64964886]
[1740751464618,0.063,141.93,141.92,18.64964886]
[1740751464968,0.063,141.93,141.91,118.9]
[1740751465316,0.063,141.93,141.92,20.27081268]
[1740751465753,0.063,142.08,141.96,18.64964886]
[1740751465920,0.063,142.08,141.97,1.47822001]
[1740751466120,0.063,142.08,141.98,18.64964886]
[1740751466315,0.3392,142.06,141.93,1.47818523]
[1740751466630,0.3392,142.07,141.93,1.47818523]
[1740751466827,0.3392,142.06,141.93,1.47818523]
[1740751467029,0.063,142.08,141.94,0.14216157]
[1740751467240,0.063,142.08,141.98,38.79181043]
[1740751467532,0.063,142.08,141.98,40.26976793]
[1740751468113,0.063,142.08,141.98,47.31296793]
[1740751468316,0.063,142.08,141.99,18.79181043]
[1740751468515,0.063,142.08,142.03,18.79181043]
[1740751468715,0.063,142.08,142.05,18.79181043]
[1740751472074,0.03,142.14,142.1,18.64964886]
[1740751472274,0.03,142.14,142.11,1.47677788]
[1740751472450,0.03,142.14,142.12,0.14216157]
[1740751472646,0.03,142.14,142.13,40.1258675]
[1740751473477,0.03,142.14,142.13,40.26802907]
[1740751473851,0.03,142.14,142.13,352.1258675]
[1740751474054,0.03,142.14,142.13,350.64964886]
[1740751474252,0.03,142.14,142.13,350.79181043]
[1740751474458,0.03,142.14,142.13,38.64964886]
[1740751474796,0.10415179,142.14,142.13,38.64964886]
[1740751474955,0.10415179,142.14,142.13,40.12614676]
[1740751475155,0.10415179,142.14,142.13,20.12614676]
[1740751476679,0.10415179,142.14,142.13,18.64964886]
[1740751476872,0.10415179,142.14,142.13,20.1261039]
[1740751477078,0.10415179,142.14,142.1,1.47646039]
[1740751477260,0.10415179,142.14,142.05,8.51650088]
[1740751477455,0.10415179,142.14,142.1,312.0]
[1740751477654,0.10415179,142.14,142.02,118.58]
[1740751477870,0.10415179,142.14,142.04,18.64964886]
[1740751478073,0.10415179,142.14,142.07,0.14216157]
[1740751478266,0.10415179,142.14,142.03,26.3032]
[1740751478267,0.10415179,142.14,142.09,18.64964886]
[1740751478974,0.44335179,142.14,142.04,1.47711088]
[1740751479173,0.10415179,142.14,142.04,1.47711088]
[1740751479487,0.10415179,142.14,142.09,18.79181043]
[1740751479779,0.10415179,142.14,142.11,18.64964886]
[1740751479978,0.10415179,142.14,142.12,1.47656489]
[1740751480185,0.10415179,142.14,142.13,137.33181043]
[1740751480558,0.10415179,142.14,142.13,449.33181043]
[1740751480757,0.10415179,142.14,142.13,449.18964886]
[1740751481960,0.10415179,142.14,142.13,430.54]
[1740751482162,0.10415179,142.14,142.13,118.54]
[1740751482578,0.3392,142.27,142.16,20.0]
[1740751482781,0.3392,142.25,142.18,18.64964886]
[1740751482971,0.3392,142.23,142.15,1.47616197]
[1740751483176,0.3392,142.27,142.17,18.64964886]
[1740751483367,0.3392,142.27,142.18,1.47590961]
[1740751483567,0.03,142.29,142.21,18.64964886]
[1740751483773,0.03,142.29,142.23,18.64964886]
[1740751484066,0.03,142.29,142.2,20.0]
[1740751484067,0.03,142.29,142.26,0.14216157]
[1740751484270,0.03,142.29,142.28,18.64964886]
[1740751484501,0.3392,142.26,142.16,118.52]
[1740751484661,0.03,142.29,142.16,118.52]
[1740751484662,0.3392,142.23,142.16,118.52]
[1740751485198,0.3392,142.2,142.16,312.0]
[1740751485365,0.3392,142.2,142.08,118.583]
[1740751485691,0.3392,142.26,142.09,18.64964886]
[1740751485994,0.3392,142.25,142.1,1.47598357]
[1740751486297,0.3392,142.25,142.13,0.14216157]
[1740751486599,0.3392,142.23,142.14,1.47628786]
[1740751487069,0.3392,142.19,142.12,1.47653646]
[1740751487270,0.3392,142.18,142.1,1.47663418]
[1740751487895,0.3392,142.17,142.11,18.64964886]
[1740751488276,0.3392,142.16,142.11,312.0]
[1740751488673,0.3392,142.18,142.11,312.0]
[1740751488895,0.3392,142.24,142.17,18.64964886]
[1740751489101,0.3392,142.28,142.19,18.64964886]
[1740751489401,0.3392,142.21,142.19,118.48]
[1740751489778,0.3392,142.2,142.19,118.48]
[1740751489972,0.3392,142.21,142.19,118.48]
[1740751490178,0.3392,142.18,142.12,1.47626718]
[1740751490391,0.3392,142.17,142.12,1.47626718]
[1740751490697,0.3392,142.2,142.13,18.64964886]
[1740751490872,0.3392,142.21,142.15,18.64964886]
[1740751491072,0.3392,142.23,142.17,18.64964886]
[1740751491872,0.3392,142.28,142.21,312.0]
[1740751492068,0.3392,142.27,142.22,18.64964886]
[1740751492301,0.3692,142.29,142.22,20.12532019]
[1740751492491,0.3692,142.29,142.23,118.48]
[1740751492492,0.3392,142.27,142.23,118.48]
[1740751492873,0.3392,142.28,142.23,118.48]
[1740751493175,0.03,142.29,142.23,118.48]
[1740751493176,0.3392,142.26,142.23,118.48]
[1740751493487,0.3392,142.27,142.23,118.48]
[1740751493791,0.3392,142.26,142.23,118.48]
[1740751493993,0.3392,142.28,142.23,118.48]
[1740751494167,0.03,142.29,142.24,20.12524151]
[1740751494373,0.03,142.29,142.25,18.64964886]
[1740751494596,0.03,142.29,142.28,38.64964886]
[1740751494768,0.03,142.29,142.23,143.22986157]
[1740751494769,0.03,142.29,142.24,1.47501433]
[1740751494969,0.03,142.29,142.24,8.50501433]
[1740751495171,0.03,142.29,142.28,38.64964886]
[1740751495398,0.03,142.29,142.28,352.12465767]
[1740751495600,0.03,142.29,142.28,350.64964886]
[1740751496095,0.03,142.29,142.28,330.64964886]
[1740751496294,0.03,142.29,142.28,312.0]
[1740751496679,0.03,142.29,142.28,330.64964886]
[1740751496885,0.03,142.29,142.28,312.0]
[1740751497383,0.03,142.29,142.28,337.67794886]
[1740751498101,0.03,142.29,142.28,337.82011043]
[1740751498678,0.03,142.29,142.28,330.64964886]
[1740751499194,0.03,142.29,142.28,312.0]
[1740751500194,0.3692,142.29,142.2,3.8686]
[1740751500392,0.3392,142.23,142.14,7.0353]
[1740751500608,0.03,142.29,142.15,1.47604859]
[1740751500798,0.03,142.29,142.2,5.53374759]
[1740751501105,0.03,142.34,142.22,57.0313]
[1740751501275,0.03,142.34,142.23,11.39176848]
[1740751501478,2.0,142.3,142.13,0.063]
[1740751501672,3.51506916,142.31,142.13,8.57511051]
[1740751501874,0.14216157,142.3,142.13,8.57511051]
[1740751502074,2.14216157,142.28,142.13,1.53951051]
[1740751502298,0.14216157,142.22,142.13,0.063]
[1740751502596,2.0,142.29,142.13,0.063]
[1740751502799,0.03,142.34,142.13,125.4788]
[1740751502983,0.03,142.34,142.15,7.0348]
[1740751503187,0.03,142.34,142.22,312.0]
[1740751503390,2.14216157,142.28,142.13,0.063]
[1740751503588,2.14216157,142.22,142.13,0.063]
[1740751503904,0.14216157,142.31,142.13,0.063]
[1740751504206,0.52727969,142.24,142.14,18.64964886]
[1740751504406,0.52727969,142.24,142.17,7.56516157]
[1740751504707,7.969e-05,142.24,142.2,0.14216157]
[1740751505052,7.969e-05,142.24,142.21,118.4]
[1740751505187,7.969e-05,142.24,142.22,1.47611402]
[1740751505578,7.969e-05,142.24,142.14,1.47584701]
[1740751505785,7.969e-05,142.24,142.13,0.063]
[1740751505981,0.14216157,142.22,142.13,0.063]
[1740751506182,2.14216157,142.22,142.13,0.063]
[1740751506378,0.14216157,142.22,142.13,0.063]
[1740751506587,0.14216157,142.17,142.13,0.063]
[1740751506802,2.00007969,142.24,142.13,0.063]
[1740751506989,7.969e-05,142.24,142.13,0.063]
[1740751507504,2.00007969,142.24,142.13,0.063]
[1740751507701,7.969e-05,142.24,142.13,0.063]
[1740751507895,7.969e-05,142.24,142.15,18.64964886]
[1740751508095,7.969e-05,142.24,142.18,0.14216157]
[1740751508299,7.969e-05,142.24,142.19,1.47547866]
[1740751508697,7.969e-05,142.24,142.21,0.14216157]
[1740751508919,7.969e-05,142.24,142.23,18.64964886]
[1740751509121,7.969e-05,142.24,142.22,1.47535944]
[1740751509325,7.969e-05,142.24,142.21,7.0314]
[1740751509326,7.969e-05,142.24,142.21,1.47568721]
[1740751509524,7.969e-05,142.24,142.23,312.0]
[1740751509727,7.969e-05,142.24,142.23,330.79181043]
[1740751509930,0.03,142.34,142.24,18.79181043]
[1740751510136,0.03,142.34,142.26,0.14216157]
[1740751510434,0.03,142.34,142.28,18.64964886]
[1740751510603,0.03,142.34,142.3,0.14216157]
[1740751510807,0.03,142.34,142.32,18.64964886]
[1740751511010,0.03,142.4,142.35,0.14216157]
[1740751511206,0.03,142.4,142.37,0.14216157]
[1740751511428,0.03,142.48,142.38,1.47370849]
[1740751511623,0.03,142.48,142.39,0.14216157]
[1740751511818,0.03,142.49,142.42,18.79181043]
[1740751512031,0.03,142.49,142.48,74.32209514]
[1740751512236,0.03,142.49,142.48,37.28735426]
[1740751512422,0.03,142.49,142.43,35.35245906]
[1740751512610,0.03,142.49,142.45,35.01811438]
[1740751512812,0.03,142.49,142.48,55.67244628]
[1740751513032,0.03,142.54,142.48,438.81146198]
[1740751513331,0.03,142.54,142.52,38.64964886]
[1740751513536,0.03,142.54,142.53,1.4722555]
[1740751513724,0.03,142.54,142.53,20.12190436]
[1740751513912,0.03,142.54,142.51,35.97648669]
[1740751514110,0.03,142.54,142.5,35.12328804]
[1740751514429,0.03,142.54,142.53,4.87934356]
[1740751515737,0.03,142.54,142.42,4.87934356]
[1740751515913,0.03,142.54,142.43,1.47379359]
[1740751516239,0.14216157,142.56,142.42,11.90054356]
[1740751516543,0.14216157,142.54,142.44,312.0]
[1740751516835,2.14216157,142.52,142.42,4.87934356]
[1740751517030,2.14216157,142.54,142.42,4.87934356]
[1740751517240,0.14216157,142.54,142.42,7.0211]
[1740751517438,2.0,142.61,142.44,18.64964886]
[1740751517636,2.0,142.59,142.45,1.47336845]
[1740751517936,2.0,142.58,142.41,1.47352273]
[1740751518126,2.0,142.61,142.43,21.47352273]
[1740751518309,2.0,142.62,142.44,18.64964886]
[1740751518511,2.0,142.6,142.45,1.47332027]
[1740751518838,0.03,142.56,142.43,20.0]
[1740751519218,0.03,142.56,142.44,1.47359095]
[1740751519422,0.03,142.56,142.43,20.0]
[1740751519631,0.03,142.56,142.44,1.47352731]
[1740751519820,0.03,142.56,142.46,312.0]
[1740751520026,0.03,142.56,142.47,20.12280604]
[1740751520230,0.03,142.56,142.43,44.5733]
[1740751520432,0.03,142.56,142.48,20.0]
[1740751520615,0.03,142.56,142.5,18.64964886]
[1740751520815,0.03,142.56,142.51,118.24]
[1740751521014,0.03,142.56,142.53,18.64964886]
[1740751521323,0.03,142.56,142.55,20.0]
[1740751521531,0.03,142.56,142.54,1.47241041]
[1740751521724,0.03,142.56,142.51,118.24]
[1740751522048,0.03,142.56,142.52,1.47283027]
[1740751524023,2.0,142.68,142.52,1.4728283]
[1740751524339,0.14216157,142.64,142.51,118.24]
[1740751524722,2.0,142.66,142.51,118.24]
[1740751525035,2.0,142.68,142.51,118.24]
[1740751525232,0.03,142.71,142.53,18.64964886]
[1740751525415,0.03,142.71,142.54,1.4722029]
[1740751525617,0.03,142.71,142.55,18.64964886]
[1740751525824,0.03,142.71,142.57,18.64964886]
[1740751526027,0.03,142.71,142.58,1.47191836]
[1740751526421,0.03,142.71,142.63,18.64964886]
[1740751526637,0.03,142.71,142.67,18.64964886]
[1740751526842,0.03,142.71,142.7,312.0]
[1740751527035,0.03,142.71,142.7,319.0077]
[1740751527233,0.03,142.71,142.7,312.0]
[1740751527435,0.8800056,142.77,142.71,10.5874]
[1740751527635,0.8800056,142.77,142.7,312.0]
[1740751527834,0.8800056,142.77,142.66,125.1296]
[1740751528141,0.8800056,142.77,142.7,18.64964886]
[1740751528338,0.8800056,142.77,142.66,118.12]
[1740751528540,0.8800056,142.77,142.67,1.47127087]
[1740751528742,0.8800056,142.77,142.66,118.12]
[1740751528948,0.14216157,142.76,142.66,118.12]
[1740751529248,18.79181043,142.73,142.57,118.12]
[1740751529451,0.14216157,142.73,142.58,1.47204969]
[1740751529653,0.14216157,142.75,142.59,1.47196371]
[1740751529857,0.8800056,142.77,142.6,20.0]
[1740751530019,0.8800056,142.77,142.65,20.0]
[1740751530224,0.8800056,142.77,142.66,20.12052673]
[1740751530435,0.8800056,142.77,142.69,20.0]
[1740751530627,0.8800056,142.77,142.7,1.47064831]
[1740751530842,0.8800056,142.77,142.69,118.1]
[1740751531047,0.14216157,142.71,142.56,1.47132948]
[1740751531343,0.14216157,142.71,142.48,7.0185]
[1740751531344,0.14216157,142.66,142.48,7.0185]
[1740751531545,0.14216157,142.66,142.48,1.47244468]
[1740751531546,18.79181043,142.64,142.48,1.47244468]
[1740751531862,0.14216157,142.66,142.5,20.0]
[1740751532029,0.14216157,142.66,142.51,1.47267874]
[1740751532357,20.79181043,142.61,142.47,118.1]
[1740751532859,0.14216157,142.61,142.47,118.1]
[1740751533036,0.14216157,142.59,142.47,118.1]
[1740751533225,18.79181043,142.57,142.41,1.53665648]
[1740751533426,18.79181043,142.52,142.41,0.063]
[1740751533650,2.0,142.61,142.41,0.063]
[1740751533943,0.14216157,142.61,142.46,312.0]
[1740751534144,0.14216157,142.61,142.47,1.47318511]
[1740751534354,0.14216157,142.62,142.48,18.64964886]
[1740751534660,0.14216157,142.62,142.47,1.47269405]
[1740751534833,0.14216157,142.63,142.48,1.47314825]
[1740751535145,2.0,142.71,142.53,20.0]
[1740751535452,2.9100056,142.77,142.58,20.0]
[1740751535750,4.9100056,142.77,142.59,1.47156746]
[1740751535953,4.0,142.7,142.54,118.12]
[1740751536125,4.0,142.69,142.54,118.12]
[1740751536326,0.14216157,142.67,142.54,118.12]
[1740751536722,0.14216157,142.67,142.55,1.47264234]
[1740751536950,4.0,142.74,142.55,18.64964886]
[1740751537135,35.54905733,142.76,142.59,18.64964886]
[1740751537341,2.0,142.74,142.66,312.0]
[1740751537753,37.41437776,142.75,142.54,118.12]
[1740751537754,0.14216157,142.72,142.54,118.12]
[1740751537958,4.14216157,142.72,142.54,118.12]
[1740751538268,0.14216157,142.67,142.54,118.12]
[1740751538552,2.0,142.66,142.45,118.12]
[1740751538743,0.14216157,142.65,142.46,1.47315333]
[1740751538948,0.14216157,142.61,142.45,118.12]
[1740751539338,18.79181043,142.59,142.45,118.12]
[1740751539742,0.14216157,142.62,142.46,1.47354486]
[1740751539932,2.0,142.68,142.46,1.47354486]
[1740751539933,2.0,142.67,142.51,18.64964886]
[1740751540134,2.0,142.71,142.51,20.12227681]
[1740751540335,2.0,142.69,142.51,20.12227681]
[1740751540535,20.64964886,142.69,142.51,20.12227681]
[1740751540742,20.64964886,142.67,142.46,1.47268155]
[1740751540954,18.79181043,142.63,142.46,1.47268155]
[1740751541154,2.14216157,142.63,142.46,8.49188155]
[1740751541356,18.79181043,142.61,142.45,118.12]
[1740751541651,2.14216157,142.62,142.45,125.1399]
[1740751541868,0.14216157,142.62,142.56,312.0]
[1740751542231,2.0,142.69,142.49,20.0]
[1740751542437,2.0,142.72,142.51,18.64964886]
[1740751542438,2.0,142.71,142.51,18.64964886]
[1740751542642,2.0,142.71,142.53,18.64964886]
[1740751542853,2.0,142.73,142.54,1.47228148]
[1740751543063,1.1749465,142.79,142.59,18.64964886]
[1740751543245,1.1749465,142.79,142.6,118.14]
[1740751543556,2.0,142.75,142.6,118.14]
[1740751543762,0.9100056,142.77,142.6,118.14]
[1740751544061,18.64964886,142.75,142.6,118.14]
[1740751544259,0.14216157,142.69,142.6,118.14]
[1740751544567,0.14216157,142.69,142.53,18.64964886]
[1740751544764,0.03,142.71,142.56,20.0]
[1740751544953,0.03,142.71,142.61,25.66174886]
[1740751545258,0.03,142.71,142.7,312.0]
[1740751546045,0.03,142.71,142.57,3.6445]
[1740751546253,0.03,142.71,142.58,1.47200711]
[1740751546451,0.03,142.71,142.57,5.11635745]
[1740751547060,0.03,142.71,142.67,312.0]
[1740751547463,0.03,142.71,142.57,21.1791]
[1740751547670,0.03,142.71,142.61,38.64964886]
[1740751547867,0.03,142.71,142.62,1.47149641]
[1740751548076,0.03,142.71,142.57,3.6445]
[1740751548458,20.79181043,142.7,142.51,118.08]
[1740751548769,20.79181043,142.68,142.51,118.08]
[1740751549084,0.03,142.71,142.54,18.64964886]
[1740751549376,0.03,142.71,142.56,18.64964886]
[1740751549553,0.03,142.71,142.57,1.47203304]
[1740751549962,0.9100056,142.77,142.71,2.0]
[1740751550162,35.70401075,142.87,142.78,0.14216157]
[1740751550359,35.53823195,142.99,142.79,5.09312621]
[1740751550563,35.53823195,142.99,142.8,0.14216157]
[1740751550768,35.53823195,142.99,142.85,20.0]
[1740751550988,35.53823195,142.99,142.86,118.08]
[1740751551287,35.53823195,142.99,142.87,8.46816564]
[1740751551448,34.31730506,143.01,142.86,118.08]
[1740751551649,1.3009,143.1,142.86,118.08]
[1740751551650,34.58754681,143.02,142.93,312.0]
[1740751551885,34.17987497,143.05,142.93,312.0]
[1740751552178,34.17987497,143.05,142.86,125.0796]
[1740751552179,34.53823195,142.99,142.89,20.0]